[Event "MČR družstev mladších žáků 2024"]
[Site "Harrachov, Czech Republic"]
[Date "2024.06.15"]
[Round "4.11"]
[White "Melicharova Veronika"]
[Black "Prikryl Daniel"]
[Result "1-0"]
[TimeControl "25+10"]
[WhiteFideId "23749695"]
[BlackFideId "23745770"]
[WhiteElo "1003"]
[BlackElo "1199"]

1. e4 {[%clk 00:25:17]} {[%emt 00:00:03]} e5 {[%clk 00:25:17]} {[%emt
00:00:04]} 2. Nf3 {[%clk 00:25:23]} {[%emt 00:00:03]} Nc6 {[%clk 00:25:23]}
{[%emt 00:00:04]} 3. d4 {[%clk 00:25:31]} {[%emt 00:00:03]} exd4 {[%clk
00:25:19]} {[%emt 00:00:14]} 4. Nxd4 {[%clk 00:25:38]} {[%emt 00:00:02]} Bc5
{[%clk 00:25:09]} {[%emt 00:00:20]} 5. Be3 {[%clk 00:25:43]} {[%emt 00:00:04]}
d6 {[%clk 00:24:48]} {[%emt 00:00:31]} 6. Nc3 {[%clk 00:25:03]} {[%emt
00:00:51]} Bd7 {[%clk 00:24:21]} {[%emt 00:00:34]} 7. Bc4 {[%clk 00:22:59]}
{[%emt 00:02:09]} Nf6 {[%clk 00:23:58]} {[%emt 00:00:40]} 8. O-O {[%clk
00:20:48]} {[%emt 00:02:21]} O-O {[%clk 00:23:18]} {[%emt 00:00:51]} 9. f4
{[%clk 00:19:19]} {[%emt 00:01:37]} Re8 {[%clk 00:22:28]} {[%emt 00:01:01]} 10.
e5 {[%clk 00:18:41]} {[%emt 00:00:48]} dxe5 {[%clk 00:21:54]} {[%emt 00:00:43]}
11. fxe5 {[%clk 00:13:37]} {[%emt 00:05:15]} Rxe5 {[%clk 00:21:21]} {[%emt
00:00:41]} 12. Bf2 {[%clk 00:11:18]} {[%emt 00:02:24]} Bg4 {[%clk 00:20:10]}
{[%emt 00:01:22]} 13. Nf3 {[%clk 00:07:57]} {[%emt 00:03:24]} Bxf2+ {[%clk
00:18:52]} {[%emt 00:01:41]} 14. Rxf2 {[%clk 00:06:54]} {[%emt 00:01:12]} Qxd1+
{[%clk 00:18:44]} {[%emt 00:00:19]} 15. Rxd1 {[%clk 00:06:51]} {[%emt
00:00:12]} Bxf3 {[%clk 00:18:30]} {[%emt 00:00:25]} 16. Rxf3 {[%clk 00:06:29]}
{[%emt 00:00:31]} Rae8 {[%clk 00:18:10]} {[%emt 00:00:31]} 17. Rff1 {[%clk
00:05:10]} {[%emt 00:01:26]} Nb4 {[%clk 00:16:43]} {[%emt 00:01:35]} 18. Bb3
{[%clk 00:03:49]} {[%emt 00:01:36]} g6 {[%clk 00:15:28]} {[%emt 00:01:25]} 19.
Rxf6 {[%clk 00:03:14]} {[%emt 00:00:45]} R5e7 {[%clk 00:14:53]} {[%emt
00:00:44]} 20. Rff1 {[%clk 00:02:26]} {[%emt 00:00:46]} Kg7 {[%clk 00:14:41]}
{[%emt 00:00:33]} 21. a3 {[%clk 00:01:28]} {[%emt 00:01:12]} Nc6 {[%clk
00:14:37]} {[%emt 00:00:12]} 22. Ba4 {[%clk 00:01:06]} {[%emt 00:00:34]} a6
{[%clk 00:13:46]} {[%emt 00:01:01]} 23. Bxc6 {[%clk 00:01:11]} {[%emt
00:00:05]} bxc6 {[%clk 00:13:50]} {[%emt 00:00:06]} 24. Na4 {[%clk 00:01:19]}
{[%emt 00:00:02]} Rc8 {[%clk 00:12:47]} {[%emt 00:01:09]} 25. Nc5 {[%clk
00:01:19]} {[%emt 00:00:10]} a5 {[%clk 00:12:24]} {[%emt 00:00:29]} 26. Rd2
{[%clk 00:01:01]} {[%emt 00:00:36]} Re5 {[%clk 00:12:12]} {[%emt 00:00:16]} 27.
Nd7 {[%clk 00:00:42]} {[%emt 00:00:34]} Re7 {[%clk 00:11:51]} {[%emt 00:00:27]}
28. Nc5 {[%clk 00:00:48]} {[%emt 00:00:08]} Re5 {[%clk 00:11:47]} {[%emt
00:00:12]} 29. b4 {[%clk 00:00:47]} {[%emt 00:00:13]} Rg5 {[%clk 00:11:14]}
{[%emt 00:00:42]} 30. Rd7 {[%clk 00:00:48]} {[%emt 00:00:10]} axb4 {[%clk
00:10:45]} {[%emt 00:00:39]} 31. Ne6+ {[%clk 00:00:50]} {[%emt 00:00:08]} Kh6
{[%clk 00:10:42]} {[%emt 00:00:11]} 32. Nxg5 {[%clk 00:00:57]} {[%emt
00:00:05]} Kxg5 {[%clk 00:10:48]} {[%emt 00:00:04]} 33. axb4 {[%clk 00:01:04]}
{[%emt 00:00:03]} f5 {[%clk 00:10:52]} {[%emt 00:00:06]} 34. Rxh7 {[%clk
00:01:08]} {[%emt 00:00:06]} Kf6 {[%clk 00:10:52]} {[%emt 00:00:07]} 35. Rh3
{[%clk 00:01:10]} {[%emt 00:00:11]} Rb8 {[%clk 00:10:56]} {[%emt 00:00:06]} 36.
c3 {[%clk 00:01:11]} {[%emt 00:00:09]} Kg5 {[%clk 00:10:52]} {[%emt 00:00:14]}
37. Rff3 {[%clk 00:01:10]} {[%emt 00:00:08]} Kf6 {[%clk 00:10:54]} {[%emt
00:00:10]} 38. g4 {[%clk 00:01:17]} {[%emt 00:00:04]} Ke5 {[%clk 00:10:31]}
{[%emt 00:00:31]} 39. gxf5 {[%clk 00:01:24]} {[%emt 00:00:05]} gxf5 {[%clk
00:10:33]} {[%emt 00:00:08]} 40. Re3+ {[%clk 00:01:31]} {[%emt 00:00:02]} Kd6
{[%clk 00:10:33]} {[%emt 00:00:10]} 41. Rh6+ {[%clk 00:01:33]} {[%emt
00:00:08]} Kd7 {[%clk 00:10:28]} {[%emt 00:00:14]} 42. Rd3+ {[%clk 00:01:31]}
{[%emt 00:00:11]} Ke8 {[%clk 00:10:28]} {[%emt 00:00:10]} 43. Rh8+ {[%clk
00:01:39]} {[%emt 00:00:04]} 1-0



[ePGN "0.1;DGT LiveChess/2.2.6"]

[Event "MČR družstev mladších žáků 2024"]
[Site "Harrachov, Czech Republic"]
[Date "2024.06.15"]
[Round "4.13"]
[White "Policar Martin"]
[Black "Kroulik Stepan"]
[Result "1-0"]
[TimeControl "25+10"]
[WhiteFideId "23734868"]
[BlackFideId "23725460"]
[WhiteElo "1646"]
[BlackElo "1370"]

1. d4 {[%clk 00:25:19]} {[%emt 00:06:00]} Nf6 {[%clk 00:25:18]} {[%emt
00:00:03]} 2. c4 {[%clk 00:25:28]} {[%emt 00:00:02]} c5 {[%clk 00:25:27]} 3.
Nf3 {[%clk 00:25:35]} {[%emt 00:00:03]} e6 {[%clk 00:25:30]} {[%emt 00:00:08]}
4. g3 {[%clk 00:25:42]} {[%emt 00:00:03]} d5 {[%clk 00:25:14]} {[%emt
00:00:25]} 5. Bg2 {[%clk 00:25:51]} {[%emt 00:00:02]} dxc4 {[%clk 00:25:16]}
{[%emt 00:00:08]} 6. Qa4+ {[%clk 00:25:28]} {[%emt 00:00:32]} Nc6 {[%clk
00:25:19]} {[%emt 00:00:07]} 7. Ne5 {[%clk 00:25:21]} {[%emt 00:00:17]} Bd7
{[%clk 00:25:11]} {[%emt 00:00:18]} 8. Nxc6 {[%clk 00:25:27]} {[%emt 00:00:03]}
Bxc6 {[%clk 00:25:09]} {[%emt 00:00:12]} 9. Bxc6+ {[%clk 00:25:35]} {[%emt
00:00:02]} bxc6 {[%clk 00:25:19]} 10. Qxc6+ {[%clk 00:25:44]} {[%emt 00:00:01]}
Nd7 {[%clk 00:25:21]} {[%emt 00:00:08]} 11. O-O {[%clk 00:25:26]} {[%emt
00:00:27]} cxd4 {[%clk 00:24:51]} {[%emt 00:00:40]} 12. Qxc4 {[%clk 00:25:22]}
{[%emt 00:00:13]} Bc5 {[%clk 00:24:10]} {[%emt 00:00:51]} 13. Rd1 {[%clk
00:25:12]} {[%emt 00:00:19]} Qf6 {[%clk 00:23:55]} {[%emt 00:00:26]} 14. Nd2
{[%clk 00:24:39]} {[%emt 00:00:43]} e5 {[%clk 00:23:22]} {[%emt 00:00:43]} 15.
Ne4 {[%clk 00:23:07]} {[%emt 00:01:42]} Qb6 {[%clk 00:23:14]} {[%emt 00:00:17]}
16. Bd2 {[%clk 00:21:46]} {[%emt 00:01:33]} O-O {[%clk 00:23:03]} {[%emt
00:00:21]} 17. Rac1 {[%clk 00:20:17]} {[%emt 00:01:39]} Rac8 {[%clk 00:22:42]}
{[%emt 00:00:31]} 18. b4 {[%clk 00:20:08]} {[%emt 00:00:19]} Be7 {[%clk
00:22:24]} {[%emt 00:00:27]} 19. Qxc8 {[%clk 00:20:13]} {[%emt 00:00:05]} Rxc8
{[%clk 00:22:33]} {[%emt 00:00:01]} 20. Rxc8+ {[%clk 00:20:22]} {[%emt
00:00:01]} Nf8 {[%clk 00:22:33]} {[%emt 00:00:10]} 21. Rdc1 {[%clk 00:18:55]}
{[%emt 00:01:37]} h6 {[%clk 00:21:53]} {[%emt 00:00:50]} 22. R1c7 {[%clk
00:17:13]} {[%emt 00:01:52]} Bxb4 {[%clk 00:21:32]} {[%emt 00:00:31]} 23. Bxb4
{[%clk 00:17:13]} {[%emt 00:00:10]} Qxb4 {[%clk 00:21:40]} {[%emt 00:00:01]} 24.
Nc5 {[%clk 00:16:39]} {[%emt 00:00:44]} Qe1+ {[%clk 00:21:19]} {[%emt
00:00:31]} 25. Kg2 {[%clk 00:16:48]} Qxe2 {[%clk 00:21:20]} {[%emt 00:00:11]}
26. Nd7 {[%clk 00:15:33]} {[%emt 00:01:25]} Qe4+ {[%clk 00:20:57]} {[%emt
00:00:33]} 27. Kg1 {[%clk 00:15:11]} {[%emt 00:00:32]} Qe1+ {[%clk 00:21:03]}
{[%emt 00:00:03]} 28. Kg2 {[%clk 00:15:20]} {[%emt 00:00:01]} Qe4+ {[%clk
00:21:12]} {[%emt 00:00:01]} 29. f3 {[%clk 00:15:09]} {[%emt 00:00:21]} Qe2+
{[%clk 00:21:19]} {[%emt 00:00:03]} 30. Kh3 {[%clk 00:14:52]} {[%emt 00:00:27]}
Qf1+ {[%clk 00:21:01]} {[%emt 00:00:28]} 31. Kg4 {[%clk 00:14:26]} {[%emt
00:00:36]} f5+ {[%clk 00:20:27]} {[%emt 00:00:44]} 32. Kxf5 {[%clk 00:14:20]}
{[%emt 00:00:16]} Qxf3+ {[%clk 00:20:28]} {[%emt 00:00:08]} 33. Kxe5 {[%clk
00:14:28]} {[%emt 00:00:02]} Qe3+ {[%clk 00:20:23]} {[%emt 00:00:15]} 34. Kd5
{[%clk 00:14:27]} {[%emt 00:00:11]} Qe6+ {[%clk 00:19:58]} {[%emt 00:00:35]} 35.
Kc5 {[%clk 00:13:13]} {[%emt 00:01:25]} Qf5+ {[%clk 00:19:06]} {[%emt
00:01:02]} 36. Kc4 {[%clk 00:10:46]} {[%emt 00:02:38]} Qc2+ {[%clk 00:18:44]}
{[%emt 00:00:31]} 37. Kb5 {[%clk 00:10:48]} {[%emt 00:00:08]} Qb2+ {[%clk
00:18:28]} {[%emt 00:00:26]} 38. Kc6 {[%clk 00:10:19]} {[%emt 00:00:40]} Qg2+
{[%clk 00:18:17]} {[%emt 00:00:21]} 39. Kd6 {[%clk 00:10:22]} {[%emt 00:00:07]}
Qxh2 {[%clk 00:17:38]} {[%emt 00:00:49]} 40. Rxf8+ {[%clk 00:07:12]} {[%emt
00:03:20]} Kh7 {[%clk 00:17:45]} {[%emt 00:00:02]} 41. Nf6+ {[%clk 00:06:28]}
{[%emt 00:00:54]} Kg6 {[%clk 00:17:52]} {[%emt 00:00:03]} 42. Ng4 {[%clk
00:05:19]} {[%emt 00:01:19]} Qxg3+ {[%clk 00:17:44]} {[%emt 00:00:19]} 43. Ne5
{[%clk 00:05:28]} {[%emt 00:00:02]} Kh5 {[%clk 00:17:37]} {[%emt 00:00:16]} 44.
Ke6 {[%clk 00:05:14]} {[%emt 00:00:23]} Qg2 {[%clk 00:15:52]} {[%emt 00:01:54]}
45. Rf5+ {[%clk 00:05:06]} {[%emt 00:00:18]} g5 {[%clk 00:15:49]} {[%emt
00:00:13]} 46. Rxa7 {[%clk 00:03:57]} {[%emt 00:01:20]} Kh4 {[%clk 00:14:53]}
{[%emt 00:01:06]} 47. Ng6+ {[%clk 00:02:45]} {[%emt 00:01:21]} Kg4 {[%clk
00:14:35]} {[%emt 00:00:28]} 48. Ne5+ {[%clk 00:02:21]} {[%emt 00:00:35]} Kh4
{[%clk 00:14:20]} {[%emt 00:00:25]} 49. Ra4 {[%clk 00:02:06]} {[%emt 00:00:25]}
Qe4 {[%clk 00:14:14]} {[%emt 00:00:16]} 50. Rxd4 {[%clk 00:02:11]} {[%emt
00:00:05]} Qxd4 {[%clk 00:14:18]} {[%emt 00:00:06]} 51. Nf3+ {[%clk 00:02:19]}
{[%emt 00:00:02]} 1-0



[ePGN "0.1;DGT LiveChess/2.2.6"]

[Event "MČR družstev mladších žáků 2024"]
[Site "Harrachov, Czech Republic"]
[Date "2024.06.15"]
[Round "4.14"]
[White "Zika Miroslav"]
[Black "Sudrich Radek"]
[Result "0-1"]
[TimeControl "25+10"]
[WhiteFideId "23746610"]
[BlackFideId "23734361"]
[WhiteElo "1311"]
[BlackElo "1470"]

1. c4 {[%clk 00:25:17]} {[%emt 00:00:02]} g6 {[%clk 00:25:18]} {[%emt
00:00:03]} 2. Nc3 {[%clk 00:25:23]} {[%emt 00:00:03]} Bg7 {[%clk 00:25:26]}
{[%emt 00:00:02]} 3. g3 {[%clk 00:25:27]} {[%emt 00:00:07]} c5 {[%clk
00:25:34]} {[%emt 00:00:02]} 4. Bg2 {[%clk 00:25:34]} {[%emt 00:00:03]} Nc6
{[%clk 00:25:43]} {[%emt 00:00:01]} 5. Nf3 {[%clk 00:25:42]} {[%emt 00:00:02]}
Nf6 {[%clk 00:25:51]} {[%emt 00:00:02]} 6. d3 {[%clk 00:25:48]} {[%emt
00:00:04]} O-O {[%clk 00:25:58]} {[%emt 00:00:03]} 7. O-O {[%clk 00:25:56]}
{[%emt 00:00:02]} d6 {[%clk 00:26:07]} {[%emt 00:00:01]} 8. Bd2 {[%clk
00:25:54]} {[%emt 00:00:12]} e6 {[%clk 00:25:47]} {[%emt 00:00:31]} 9. Rc1
{[%clk 00:25:55]} {[%emt 00:00:09]} Bd7 {[%clk 00:25:45]} {[%emt 00:00:12]} 10.
e4 {[%clk 00:25:43]} {[%emt 00:00:22]} e5 {[%clk 00:25:44]} {[%emt 00:00:11]}
11. Nd5 {[%clk 00:25:35]} {[%emt 00:00:18]} Nxd5 {[%clk 00:25:31]} {[%emt
00:00:24]} 12. cxd5 {[%clk 00:25:24]} {[%emt 00:00:20]} Ne7 {[%clk 00:25:33]}
{[%emt 00:00:08]} 13. Qb3 {[%clk 00:25:17]} {[%emt 00:00:18]} b5 {[%clk
00:25:14]} {[%emt 00:00:29]} 14. a3 {[%clk 00:25:00]} {[%emt 00:00:26]} a5
{[%clk 00:25:20]} {[%emt 00:00:05]} 15. Qa2 {[%clk 00:24:59]} {[%emt 00:00:11]}
f5 {[%clk 00:25:04]} {[%emt 00:00:27]} 16. Ng5 {[%clk 00:24:17]} {[%emt
00:00:51]} h6 {[%clk 00:22:42]} {[%emt 00:02:32]} 17. Ne6 {[%clk 00:24:13]}
{[%emt 00:00:14]} Bxe6 {[%clk 00:22:37]} {[%emt 00:00:15]} 18. dxe6 {[%clk
00:24:19]} {[%emt 00:00:04]} f4 {[%clk 00:22:38]} {[%emt 00:00:09]} 19. gxf4
{[%clk 00:23:12]} {[%emt 00:01:16]} exf4 {[%clk 00:22:47]} {[%emt 00:00:01]} 20.
f3 {[%clk 00:21:18]} {[%emt 00:02:04]} Kh7 {[%clk 00:22:25]} {[%emt 00:00:32]}
21. Kh1 {[%clk 00:20:25]} {[%emt 00:01:03]} Rc8 {[%clk 00:21:53]} {[%emt
00:00:41]} 22. Bc3 {[%clk 00:19:39]} {[%emt 00:00:55]} Be5 {[%clk 00:20:58]}
{[%emt 00:01:05]} 23. Rg1 {[%clk 00:18:51]} {[%emt 00:00:58]} Rf6 {[%clk
00:19:48]} {[%emt 00:01:21]} 24. Bh3 {[%clk 00:18:51]} {[%emt 00:00:11]} Qe8
{[%clk 00:19:26]} {[%emt 00:00:30]} 25. Bxa5 {[%clk 00:18:26]} {[%emt
00:00:36]} Nc6 {[%clk 00:18:54]} {[%emt 00:00:42]} 26. Bc3 {[%clk 00:18:05]}
{[%emt 00:00:31]} Rc7 {[%clk 00:17:58]} {[%emt 00:01:05]} 27. Bxe5 {[%clk
00:16:07]} {[%emt 00:02:09]} Nxe5 {[%clk 00:18:06]} {[%emt 00:00:02]} 28. Qd5
{[%clk 00:15:53]} {[%emt 00:00:23]} Qe7 {[%clk 00:17:28]} {[%emt 00:00:48]} 29.
Rgf1 {[%clk 00:14:24]} {[%emt 00:01:39]} Nc6 {[%clk 00:14:05]} {[%emt
00:03:31]} 30. Kg2 {[%clk 00:12:46]} {[%emt 00:01:51]} Nd4 {[%clk 00:14:10]}
{[%emt 00:00:05]} 31. b4 {[%clk 00:11:37]} {[%emt 00:01:18]} Nxe6 {[%clk
00:14:01]} {[%emt 00:00:19]} 32. bxc5 {[%clk 00:11:30]} {[%emt 00:00:17]} dxc5
{[%clk 00:13:42]} {[%emt 00:00:29]} 33. Qb3 {[%clk 00:11:05]} {[%emt 00:00:35]}
Nd4 {[%clk 00:13:36]} {[%emt 00:00:16]} 34. Qa2 {[%clk 00:10:08]} {[%emt
00:01:07]} Rd6 {[%clk 00:13:18]} {[%emt 00:00:23]} 35. Rg1 {[%clk 00:09:26]}
{[%emt 00:00:57]} Qh4 {[%clk 00:12:53]} {[%emt 00:00:27]} 36. Bg4 {[%clk
00:07:29]} {[%emt 00:02:14]} h5 {[%clk 00:12:54]} {[%emt 00:00:10]} 37. Bh3
{[%clk 00:06:37]} {[%emt 00:01:03]} Nxf3 {[%clk 00:12:19]} {[%emt 00:00:45]} 38.
Kxf3 {[%clk 00:06:27]} {[%emt 00:00:19]} Qxh3+ {[%clk 00:12:25]} {[%emt
00:00:04]} 39. Kf2 {[%clk 00:05:41]} {[%emt 00:00:56]} Qxh2+ {[%clk 00:12:22]}
{[%emt 00:00:14]} 40. Rg2 {[%clk 00:05:44]} {[%emt 00:00:07]} Qh4+ {[%clk
00:12:29]} {[%emt 00:00:02]} 41. Kf1 {[%clk 00:05:43]} {[%emt 00:00:12]} Qh1+
{[%clk 00:12:24]} {[%emt 00:00:15]} 42. Rg1 {[%clk 00:05:45]} {[%emt 00:00:08]}
Qf3+ {[%clk 00:12:30]} {[%emt 00:00:03]} 43. Qf2 {[%clk 00:04:43]} {[%emt
00:01:12]} Qxf2+ {[%clk 00:12:28]} {[%emt 00:00:13]} 44. Kxf2 {[%clk 00:04:51]}
{[%emt 00:00:02]} Rxd3 {[%clk 00:12:36]} 45. Rb1 {[%clk 00:04:21]} {[%emt
00:00:41]} Rxa3 {[%clk 00:12:29]} {[%emt 00:00:17]} 46. Rxb5 {[%clk 00:04:26]}
{[%emt 00:00:04]} Re3 {[%clk 00:11:02]} {[%emt 00:01:36]} 47. Rb6 {[%clk
00:04:15]} {[%emt 00:00:22]} Rg7 {[%clk 00:11:02]} {[%emt 00:00:10]} 48. Rc6
{[%clk 00:04:04]} {[%emt 00:00:22]} Rxe4 {[%clk 00:11:09]} {[%emt 00:00:03]} 49.
Rxc5 {[%clk 00:04:06]} {[%emt 00:00:08]} Kh6 {[%clk 00:10:39]} {[%emt
00:00:40]} 50. Kf3 {[%clk 00:04:08]} {[%emt 00:00:08]} Ra4 {[%clk 00:10:47]}
{[%emt 00:00:01]} 51. Rc6 {[%clk 00:03:56]} {[%emt 00:00:23]} Kh7 {[%clk
00:10:34]} {[%emt 00:00:22]} 52. Rf6 {[%clk 00:03:53]} {[%emt 00:00:15]} g5
{[%clk 00:09:57]} {[%emt 00:00:47]} 53. Rh1 {[%clk 00:03:45]} {[%emt 00:00:17]}
g4+ {[%clk 00:09:55]} {[%emt 00:00:13]} 54. Kg2 {[%clk 00:03:20]} {[%emt
00:00:35]} Ra2+ {[%clk 00:08:48]} {[%emt 00:01:17]} 55. Kg1 {[%clk 00:03:02]}
{[%emt 00:00:28]} Ra1+ {[%clk 00:08:52]} {[%emt 00:00:06]} 56. Kg2 {[%clk
00:03:09]} {[%emt 00:00:02]} f3+ {[%clk 00:08:54]} {[%emt 00:00:08]} 57. Kg3
{[%clk 00:01:13]} {[%emt 00:02:07]} Rxh1 {[%clk 00:09:02]} {[%emt 00:00:02]} 58.
Ra6 {[%clk 00:01:10]} {[%emt 00:00:13]} f2 {[%clk 00:09:04]} {[%emt 00:00:08]}
59. Kxf2 {[%clk 00:01:14]} {[%emt 00:00:06]} g3+ {[%clk 00:09:13]} {[%emt
00:00:02]} 60. Kg2 {[%clk 00:01:13]} {[%emt 00:00:10]} Rh2+ {[%clk 00:09:21]}
{[%emt 00:00:03]} 61. Kg1 {[%clk 00:01:18]} {[%emt 00:00:05]} g2 {[%clk
00:09:18]} {[%emt 00:00:13]} 62. Kxh2 {[%clk 00:00:24]} {[%emt 00:01:03]} g1=Q+
{[%clk 00:09:26]} {[%emt 00:00:02]} 63. Kh3 {[%clk 00:00:33]} {[%emt 00:00:02]}
Qg3# {[%clk 00:09:34]} {[%emt 00:00:02]} 0-1



[ePGN "0.1;DGT LiveChess/2.2.6"]

[Event "MČR družstev mladších žáků 2024"]
[Site "Harrachov, Czech Republic"]
[Date "2024.06.15"]
[Round "4.15"]
[White "Moravec Rene"]
[Black "Svoboda Petr"]
[Result "1/2-1/2"]
[TimeControl "25+10"]
[WhiteFideId "23745274"]
[BlackFideId "23771550"]
[WhiteElo "1295"]
[BlackElo "1261"]

1. c4 {[%clk 00:25:16]} {[%emt 00:00:02]} Nf6 {[%clk 00:25:11]} {[%emt
00:00:09]} 2. Nc3 {[%clk 00:25:20]} {[%emt 00:00:07]} g6 {[%clk 00:25:18]}
{[%emt 00:00:03]} 3. g3 {[%clk 00:25:29]} {[%emt 00:00:01]} Bg7 {[%clk
00:25:26]} {[%emt 00:00:02]} 4. Bg2 {[%clk 00:25:38]} {[%emt 00:00:01]} d6
{[%clk 00:25:34]} {[%emt 00:00:01]} 5. Nf3 {[%clk 00:25:46]} {[%emt 00:00:02]}
O-O {[%clk 00:25:42]} {[%emt 00:00:02]} 6. d3 {[%clk 00:25:55]} {[%emt
00:00:01]} e5 {[%clk 00:25:46]} {[%emt 00:00:06]} 7. O-O {[%clk 00:26:02]}
{[%emt 00:00:03]} Nbd7 {[%clk 00:25:45]} {[%emt 00:00:10]} 8. Bg5 {[%clk
00:26:03]} {[%emt 00:00:09]} a5 {[%clk 00:25:40]} {[%emt 00:00:15]} 9. a3
{[%clk 00:26:00]} {[%emt 00:00:14]} h6 {[%clk 00:25:41]} {[%emt 00:00:09]} 10.
Bd2 {[%clk 00:26:08]} {[%emt 00:00:02]} Nh7 {[%clk 00:25:27]} {[%emt 00:00:24]}
11. Qc1 {[%clk 00:26:12]} {[%emt 00:00:06]} g5 {[%clk 00:24:45]} {[%emt
00:00:52]} 12. h4 {[%clk 00:25:53]} {[%emt 00:00:29]} Nc5 {[%clk 00:23:03]}
{[%emt 00:01:52]} 13. Qc2 {[%clk 00:23:57]} {[%emt 00:02:04]} a4 {[%clk
00:21:53]} {[%emt 00:01:22]} 14. hxg5 {[%clk 00:23:46]} {[%emt 00:00:20]} hxg5
{[%clk 00:21:25]} {[%emt 00:00:38]} 15. Ne4 {[%clk 00:23:10]} {[%emt 00:00:46]}
Nxe4 {[%clk 00:20:59]} {[%emt 00:00:37]} 16. dxe4 {[%clk 00:23:16]} {[%emt
00:00:04]} f5 {[%clk 00:20:40]} {[%emt 00:00:29]} 17. Kh2 {[%clk 00:20:38]}
{[%emt 00:02:48]} f4 {[%clk 00:19:41]} {[%emt 00:01:09]} 18. Rh1 {[%clk
00:20:10]} {[%emt 00:00:38]} Be6 {[%clk 00:18:10]} {[%emt 00:01:41]} 19. Kg1
{[%clk 00:19:48]} {[%emt 00:00:31]} g4 {[%clk 00:17:24]} {[%emt 00:00:57]} 20.
Nh4 {[%clk 00:19:20]} {[%emt 00:00:35]} Qf6 {[%clk 00:15:28]} {[%emt 00:02:01]}
21. Nf5 {[%clk 00:16:06]} {[%emt 00:03:32]} Bxf5 {[%clk 00:14:56]} {[%emt
00:00:42]} 22. exf5 {[%clk 00:16:14]} {[%emt 00:00:01]} fxg3 {[%clk 00:12:32]}
{[%emt 00:02:34]} 23. fxg3 {[%clk 00:15:18]} {[%emt 00:01:07]} c6 {[%clk
00:11:06]} {[%emt 00:01:36]} 24. e4 {[%clk 00:11:44]} {[%emt 00:03:43]} Qd8
{[%clk 00:08:03]} {[%emt 00:03:13]} 25. Kf2 {[%clk 00:09:59]} {[%emt 00:01:54]}
Qb6+ {[%clk 00:06:41]} {[%emt 00:01:33]} 26. c5 {[%clk 00:09:59]} {[%emt
00:00:08]} Qxc5+ {[%clk 00:06:07]} {[%emt 00:00:47]} 27. Qxc5 {[%clk 00:10:08]}
{[%emt 00:00:02]} dxc5 {[%clk 00:06:16]} {[%emt 00:00:01]} 28. Bf1 {[%clk
00:10:14]} {[%emt 00:00:03]} Rad8 {[%clk 00:05:48]} {[%emt 00:00:38]} 29. Bc4+
{[%clk 00:10:21]} {[%emt 00:00:03]} Kh8 {[%clk 00:05:43]} {[%emt 00:00:14]} 30.
Rxh7+ {[%clk 00:09:08]} {[%emt 00:01:23]} Kxh7 {[%clk 00:05:45]} {[%emt
00:00:09]} 31. Rh1+ {[%clk 00:09:15]} {[%emt 00:00:02]} Bh6 {[%clk 00:05:44]}
{[%emt 00:00:11]} 32. Rxh6+ {[%clk 00:08:40]} {[%emt 00:00:44]} Kg7 {[%clk
00:05:46]} {[%emt 00:00:09]} 33. Rg6+ {[%clk 00:08:46]} {[%emt 00:00:03]} Kh7
{[%emt 00:03:06]} 34. Rh6+ {[%clk 00:06:22]} {[%emt 00:00:24]} Kg7 {[%clk
00:05:06]} {[%emt 00:00:05]} 35. Rg6+ {[%emt 00:01:36]} Kh7 1/2-1/2



[ePGN "0.1;DGT LiveChess/2.2.6"]